bitfinex/quotes_BTCUSD_20251201
["timestamp","ask_amount","ask_price","bid_price","bid_amount"]
[1764549352975,0.38011854,87844.0,87843.0,0.001]
[1764549353196,0.38011854,87844.0,87843.0,0.0791625]
[1764549353658,0.38011854,87844.0,87843.0,0.18036626]
[1764549354046,0.38011854,87844.0,87843.0,0.0781625]
[1764549354190,0.38011854,87844.0,87843.0,0.0801625]
[1764549354587,0.38011854,87844.0,87843.0,0.0781625]
[1764549354916,0.38011854,87844.0,87843.0,0.00948]
[1764549355119,0.43011854,87844.0,87843.0,0.17120675]
[1764549355301,0.39011854,87844.0,87843.0,0.17120675]
[1764549355504,0.1,87865.0,87864.0,0.22762451]
[1764549355712,0.17039621,87865.0,87864.0,0.23510451]
[1764549355886,0.47039621,87865.0,87864.0,0.23510451]
[1764549356916,0.05644383,87917.0,87864.0,0.23510451]
[1764549356917,0.01087741,87908.0,87903.0,0.01137617]
[1764549357116,0.13137743,87905.0,87892.0,0.00748]
[1764549357331,0.01087741,87893.0,87892.0,0.23503088]
[1764549357544,0.38087741,87893.0,87892.0,0.23503088]
[1764549357746,0.37,87893.0,87892.0,0.23503088]
[1764549357973,0.38087741,87893.0,87892.0,0.23503088]
[1764549358198,0.47388741,87893.0,87892.0,0.00748]
[1764549358394,0.4838182,87893.0,87892.0,0.00748]
[1764549358549,0.01137772,87891.0,87883.0,0.22757529]
[1764549358749,0.01087741,87888.0,87887.0,0.01137824]
[1764549359047,0.40087741,87888.0,87887.0,0.01137824]
[1764549359251,0.01087741,87885.0,87884.0,0.04892935]
[1764549359448,0.37,87885.0,87882.0,0.23895425]
[1764549359698,0.37,87885.0,87880.0,0.01137915]
[1764549359699,0.00992906,87884.0,87880.0,0.01137915]
[1764549359925,0.36087741,87884.0,87883.0,0.00748]
[1764549360297,0.35,87884.0,87883.0,0.00748]
[1764549360953,0.01137488,87913.0,87883.0,0.00748]
[1764549360954,0.00011886,87906.0,87905.0,0.22751834]
[1764549361169,0.39011886,87906.0,87905.0,0.28277761]
[1764549361326,0.39011886,87906.0,87905.0,0.3453006]
[1764549361927,0.19011886,87906.0,87905.0,0.3453006]
[1764549362152,0.37011886,87906.0,87905.0,0.3453006]
[1764549362315,0.40011886,87906.0,87903.0,0.01137617]
[1764549362515,0.40011886,87906.0,87904.0,0.23499849]
[1764549362712,0.40011886,87906.0,87903.0,0.01137617]
[1764549362918,0.01087741,87902.0,87900.0,0.00748]
[1764549363122,0.39,87902.0,87898.0,0.00748]
[1764549363328,0.01087741,87901.0,87899.0,0.01137669]
[1764549363658,0.01137863,87884.0,87867.0,0.01138083]
[1764549363838,0.01137863,87884.0,87856.0,9e-05]
[1764549363839,0.01087741,87866.0,87865.0,0.23900177]
[1764549364179,0.02844691,87883.0,87875.0,0.0113798]
[1764549364180,0.0099303,87883.0,87875.0,0.0113798]
[1764549364322,0.39,87883.0,87880.0,0.01137915]
[1764549364526,0.39,87883.0,87875.0,0.0113798]
[1764549364527,0.01137889,87882.0,87866.0,0.23899856]
[1764549364875,0.01087741,87872.0,87871.0,0.2389851]
[1764549365077,0.34087741,87872.0,87870.0,0.00748]
[1764549365281,0.33,87872.0,87871.0,0.22760637]
[1764549365881,0.33,87872.0,87871.0,0.22785475]
[1764549366058,0.00011882,87882.0,87881.0,0.29010346]
[1764549366262,0.41011882,87882.0,87881.0,0.29010346]
[1764549366443,0.41011882,87882.0,87881.0,0.29019346]
[1764549366785,0.41011882,87882.0,87881.0,0.34424757]
[1764549366976,0.41011882,87882.0,87881.0,0.28163458]
[1764549367157,0.41011882,87882.0,87881.0,0.28263458]
[1764549367358,0.41011882,87882.0,87881.0,0.22858047]
[1764549367539,0.41011882,87882.0,87881.0,0.001]
[1764549368539,0.38011882,87882.0,87881.0,0.06361299]
[1764549368742,0.34011882,87882.0,87881.0,0.06361299]
[1764549368944,0.34011882,87882.0,87881.0,0.001]
[1764549369145,0.00011882,87882.0,87881.0,0.15086611]
[1764549369366,0.03929152,87931.0,87919.0,0.22748097]
[1764549369367,0.03833791,87927.0,87919.0,0.22748097]
[1764549369579,0.34011882,87927.0,87926.0,0.227464]
[1764549369804,0.34011882,87927.0,87926.0,0.27524087]
[1764549370893,0.34011882,87927.0,87926.0,0.33785386]
[1764549371325,0.0002,87960.0,87959.0,0.22737866]
[1764549371538,0.39059582,87960.0,87959.0,0.28261006]
[1764549372058,0.39059582,87960.0,87959.0,0.28270006]
[1764549372264,0.39059582,87960.0,87959.0,0.34522305]
[1764549372505,0.39059582,87960.0,87959.0,0.33774305]
[1764549372705,0.0002,88000.0,87998.0,0.22727789]
[1764549372904,0.36031876,88000.0,87999.0,0.00748]
[1764549374126,0.32620873,88000.0,87999.0,0.00748]
[1764549375198,0.32620873,88000.0,87997.0,0.00748]
[1764549375416,0.32620873,88000.0,87998.0,0.22727789]
[1764549375582,0.13843,88040.0,88029.0,0.01135989]
[1764549375785,0.01087741,88027.0,88018.0,0.00744]
[1764549375984,0.38553868,88040.0,88036.0,0.01135898]
[1764549375985,0.00011868,88040.0,88036.0,0.01135898]
[1764549376244,0.00011868,88040.0,88038.0,0.22717364]
[1764549376245,0.33011868,88040.0,88038.0,0.22717364]
[1764549376779,0.0002,88060.0,88039.0,0.06261299]
[1764549377005,0.0002,88060.0,88058.0,0.22712303]
[1764549377006,0.24059543,88060.0,88058.0,0.22712303]
[1764549377217,0.25147284,88060.0,88051.0,0.01135705]
[1764549377452,0.25147284,88060.0,88057.0,0.01135628]
[1764549377652,0.24059543,88060.0,88053.0,0.01135679]
[1764549377858,0.03974607,88059.0,88042.0,0.01135821]
[1764549378097,0.01087741,88054.0,88046.0,0.01135769]
[1764549378317,0.01087741,88054.0,88025.0,0.00748]
[1764549378318,0.22715416,88046.0,88032.0,0.0113595]
[1764549378517,0.22715416,88046.0,88000.0,0.40999999]
[1764549378518,0.0113595,88032.0,88016.0,0.22723141]
[1764549378717,0.01136092,88021.0,88002.0,0.00748]
[1764549378834,0.02840263,88020.0,88007.0,0.01136273]
[1764549379040,0.41976368,88020.0,87994.0,0.01136441]
[1764549379269,0.41976368,88020.0,87997.0,0.01136402]
[1764549379270,0.01136273,88007.0,87997.0,0.01136402]
[1764549379472,0.01136273,88007.0,87980.0,0.01136621]
[1764549379473,0.01136466,87992.0,87980.0,0.01136621]
[1764549379674,0.01136609,87981.0,87980.0,0.00011868]
[1764549379938,0.39087741,87981.0,87980.0,0.00011868]
[1764549380411,0.38,87981.0,87980.0,0.22744307]
[1764549380751,0.01087741,87999.0,87992.0,0.01136466]
[1764549380965,0.37,87999.0,87995.0,0.23864688]
[1764549381183,0.37,87999.0,87996.0,0.2386472]
[1764549381406,0.37,87999.0,87998.0,0.28980088]
[1764549381623,0.37,87999.0,87998.0,0.33797355]
[1764549381891,0.37,87999.0,87998.0,0.40049654]
[1764549382103,0.37,87999.0,87997.0,0.22728047]
[1764549382104,0.4,87999.0,87997.0,0.22728047]
[1764549382319,0.4,87999.0,87998.0,0.06252299]
[1764549382561,0.4,87999.0,87997.0,0.22728047]
[1764549382729,0.4,87999.0,87998.0,0.05447811]
[1764549383315,0.4,87999.0,87998.0,0.04847811]
[1764549383518,0.09631,88058.0,88011.0,0.06252299]
[1764549383681,0.09631,88058.0,87998.0,0.1110011]
[1764549383682,0.22713592,88053.0,88034.0,0.01135924]
[1764549383888,0.01087741,88037.0,88036.0,0.01135898]
[1764549384086,0.01087741,88025.0,88015.0,0.01136169]
[1764549384402,0.01136337,88002.0,87984.0,0.0113657]
[1764549384589,0.39,88002.0,87999.0,0.01136376]
[1764549384789,0.01087741,87998.0,87997.0,0.00011868]
[1764549384990,0.39638243,87998.0,87997.0,0.00011868]
[1764549385206,0.47578741,87998.0,87997.0,0.00011868]
[1764549385399,0.47578741,87998.0,87978.0,0.01136647]
[1764549385400,0.47627389,87998.0,87978.0,0.01136647]
[1764549385622,0.47627389,87998.0,87996.0,0.22728305]
[1764549385623,0.38087741,87998.0,87996.0,0.22728305]
[1764549386063,0.37,87998.0,87996.0,0.22728305]
[1764549386268,0.37,87998.0,87997.0,0.10120376]
[1764549386441,0.09491,88051.0,88041.0,0.01135834]
[1764549386646,0.01087741,88042.0,88041.0,0.04884214]
[1764549386857,0.01087741,88042.0,88034.0,0.01135924]
[1764549386858,0.34,88042.0,88035.0,0.01135911]
[1764549387061,0.34,88042.0,88039.0,0.0113586]
[1764549387275,0.34,88042.0,88040.0,0.22716946]
[1764549387659,0.34011859,88042.0,88041.0,0.05111376]
[1764549388122,0.34011859,88042.0,88031.0,0.01135963]
[1764549388280,0.34011859,88042.0,88039.0,0.23852847]
[1764549388732,0.34011859,88042.0,88041.0,0.22716688]
[1764549388934,0.34011859,88042.0,88041.0,0.32837064]
[1764549389156,0.34011859,88042.0,88041.0,0.39089363]
[1764549389336,0.34011859,88042.0,88041.0,0.50342574]
[1764549389486,0.0002,88060.0,88041.0,0.50342574]
[1764549389487,0.0002,88060.0,88059.0,0.28964344]
[1764549389687,0.0002,88060.0,88059.0,0.30053547]
[1764549389688,0.31059543,88060.0,88059.0,0.30053547]
[1764549390342,1e-08,88060.0,88059.0,0.62353547]
[1764549390660,0.23833755,88111.0,88069.0,0.28961765]
[1764549390797,0.38031856,88070.0,88069.0,0.30374768]
[1764549390983,0.38031856,88070.0,88069.0,0.36627067]
[1764549391190,0.38031856,88070.0,88067.0,0.00748]
[1764549391384,0.38031856,88070.0,88069.0,0.28961765]
[1764549391611,0.37031856,88070.0,88069.0,0.28961765]
[1764549391812,0.37031856,88070.0,88067.0,0.24593236]
[1764549392017,0.37031856,88070.0,88066.0,0.01135512]
[1764549392018,0.02838683,88069.0,88066.0,0.01135512]
[1764549392351,0.01087741,88060.0,88055.0,0.01135653]
[1764549392563,0.34,88060.0,88055.0,0.01135653]
[1764549392794,0.02120985,88059.0,88053.0,0.01135679]
[1764549393004,0.09491,88098.0,88067.0,0.01135499]
[1764549393138,0.09491,88098.0,88069.0,0.22709466]
[1764549393139,0.38031856,88070.0,88069.0,0.22709466]
[1764549393320,0.38031856,88070.0,88067.0,0.01135499]
[1764549393676,0.12329683,88069.0,88050.0,0.01135718]
[1764549393972,0.01087741,88053.0,88052.0,0.01135692]
[1764549394274,0.01135834,88041.0,88029.0,0.01135989]
[1764549394430,0.03927359,88040.0,88010.0,0.00999999]
[1764549394623,0.33,88040.0,88027.0,0.01136015]
[1764549394865,0.01087741,88029.0,88028.0,0.0261295]
[1764549395071,0.01087741,88027.0,88025.0,0.0113604]
[1764549395349,0.41087741,88027.0,88025.0,0.0113604]
[1764549395554,0.41087741,88027.0,88025.0,0.00039543]
[1764549395720,0.0392781,88026.0,88025.0,0.00039543]
[1764549396070,0.50578741,88026.0,88025.0,0.00039543]
[1764549396179,0.49491,88026.0,88025.0,0.00039543]
[1764549396385,0.50578741,88026.0,88025.0,0.00039543]
[1764549396585,0.41087741,88026.0,88025.0,0.00039543]
[1764549397141,0.41087741,88026.0,88025.0,0.00639543]
[1764549397346,0.04872,88058.0,88041.0,0.01135834]
[1764549397577,0.01087741,88047.0,88045.0,0.01135782]
[1764549397725,0.37,88047.0,88044.0,0.01135795]
[1764549397891,0.37,88047.0,88046.0,0.22715365]
[1764549398091,0.37,88047.0,88034.0,0.22718495]
[1764549398335,0.37,88047.0,88035.0,0.01135911]
[1764549398336,0.01087741,88041.0,88035.0,0.01135911]
[1764549398535,0.37,88041.0,88036.0,0.23853877]
[1764549398848,0.37,88041.0,88037.0,0.01135886]
[1764549398992,0.01087741,88039.0,88030.0,0.2385533]
[1764549399195,0.01087741,88039.0,88005.0,0.06252299]
[1764549399196,0.01136002,88028.0,88010.0,0.22724646]
[1764549399550,0.35,88028.0,88025.0,0.238964]
[1764549399775,0.35,88028.0,88027.0,0.22720301]
[1764549400722,0.0002,88070.0,88068.0,0.22709623]
[1764549400922,0.0602,88070.0,88068.0,0.22709623]
[1764549401123,0.4002,88070.0,88069.0,0.04769094]
[1764549401939,0.40031856,88070.0,88069.0,0.04769094]
[1764549402748,0.40031856,88070.0,88052.0,0.01135692]
[1764549402948,0.40031856,88070.0,88031.0,0.45438105]
[1764549403154,0.40031856,88070.0,88020.0,0.00999999]
[1764549403155,0.41119597,88070.0,88069.0,0.005]
[1764549403577,0.50610597,88070.0,88069.0,0.005]
[1764549403778,0.41119597,88070.0,88069.0,0.005]
[1764549403982,0.40031856,88070.0,88069.0,0.03048071]
[1764549404157,0.40031856,88070.0,88069.0,0.005]
[1764549404357,0.01087741,88069.0,88068.0,0.22709669]
[1764549404571,0.41,88069.0,88065.0,0.22710298]
[1764549404775,0.41,88069.0,88055.0,0.01635653]
[1764549404776,0.01135512,88066.0,88055.0,0.01635653]
[1764549405006,0.38,88066.0,88058.0,0.01135615]
[1764549405180,0.39087741,88066.0,88063.0,0.23846424]
[1764549405376,0.39087741,88066.0,88055.0,0.03797744]
[1764549405580,0.01087741,88056.0,88053.0,0.01135679]
[1764549405784,0.01087741,88053.0,88052.0,0.01135692]
[1764549406097,0.01087741,88053.0,88046.0,0.01135769]
[1764549406098,0.01135692,88052.0,88040.0,0.01135847]
[1764549406297,0.01135692,88052.0,88037.0,0.01135886]
[1764549406298,0.02839263,88051.0,88047.0,0.22715087]
[1764549406526,0.4,88052.0,88014.0,0.323]
[1764549406527,0.01087741,88060.0,88058.0,0.22712145]
[1764549406724,0.37087741,88060.0,88058.0,0.22712145]
[1764549406869,0.36,88060.0,88058.0,0.29866705]
[1764549407767,0.01087741,88059.0,88058.0,0.29866705]
[1764549407968,0.4,88059.0,88055.0,0.001]
[1764549408122,0.0220487,88058.0,88056.0,0.22712819]
[1764549408478,0.01087741,88047.0,88046.0,0.22715398]
[1764549408683,0.39087741,88047.0,88046.0,0.22715398]
[1764549409208,0.38,88047.0,88046.0,0.22715398]
[1764549409455,0.38,88047.0,88046.0,0.29870877]
[1764549410294,0.38,88047.0,88046.0,0.22715398]
[1764549410495,0.38,88047.0,88046.0,0.28967697]
[1764549410796,0.38,88047.0,88046.0,0.29367697]
[1764549411105,0.38,88047.0,88046.0,0.28967697]
[1764549411990,0.38,88047.0,88046.0,0.29567697]
[1764549412138,0.38,88047.0,88046.0,0.23315398]
[1764549412343,0.38,88047.0,88035.0,0.01135911]
[1764549412591,0.39135757,88047.0,88046.0,0.004]
[1764549412791,0.38,88047.0,88046.0,0.23115398]
[1764549413010,0.38,88047.0,88046.0,0.27925806]
[1764549413217,0.39087741,88047.0,88046.0,0.004]
[1764549413398,0.71164881,88047.0,88046.0,0.004]
[1764549413698,0.41285385,88047.0,88029.0,0.01135989]
[1764549414027,0.03285385,88046.0,88040.0,0.2271676]
[1764549414222,0.35291034,88046.0,88044.0,0.22715914]
[1764549414419,0.33,88046.0,88044.0,0.22715914]
[1764549414782,0.01087741,88045.0,88044.0,0.22715914]
[1764549414980,0.41087741,88045.0,88044.0,0.22715914]
[1764549415393,0.4,88045.0,88044.0,0.22715914]
[1764549415570,0.41087741,88045.0,88044.0,0.30098775]
[1764549415993,0.4,88045.0,88044.0,0.36750074]
[1764549416387,0.00031856,88070.0,88069.0,0.22709466]
[1764549416584,0.38031856,88070.0,88069.0,0.22709466]
[1764549416783,0.01087741,88069.0,88067.0,0.2384529]
[1764549417088,0.40134636,88069.0,88056.0,0.22712621]
[1764549418694,0.01135924,88034.0,88024.0,0.01136053]
[1764549418908,0.01135976,88030.0,88011.0,0.01136221]
[1764549419107,0.37135976,88030.0,88022.0,0.23857622]
[1764549419267,0.37135976,88030.0,88022.0,0.01136079]
[1764549419469,0.01087741,88015.0,88007.0,0.01136273]
[1764549419674,0.41087741,88015.0,88014.0,0.22723657]
[1764549419877,0.41087741,88015.0,88014.0,0.25340849]
[1764549420106,0.4,88015.0,88014.0,0.25340849]
[1764549420457,0.41087741,88015.0,88014.0,0.22723657]
[1764549420706,0.4,88015.0,88011.0,0.01136221]
[1764549420907,0.4,88015.0,88014.0,0.22723657]
[1764549420908,0.41087741,88015.0,88014.0,0.22723657]
[1764549421163,0.41087741,88015.0,88007.0,0.00039543]
[1764549421164,0.22725055,88009.0,88007.0,0.00039543]
[1764549421386,0.01136492,87990.0,87949.0,0.00439]
[1764549421605,0.01136492,87990.0,87949.0,0.00039582]
[1764549421606,0.01136699,87974.0,87949.0,0.00039582]
[1764549421784,0.00995192,87973.0,87959.0,0.01136893]
[1764549421992,0.00995192,87973.0,87949.0,0.00039582]
[1764549421993,0.38289828,87973.0,87968.0,0.01136777]
[1764549422127,0.38289828,87973.0,87966.0,0.01136802]
[1764549422128,0.35,87973.0,87970.0,0.01136751]
[1764549422338,0.01087741,87972.0,87971.0,0.02728297]
[1764549422678,0.34087741,87972.0,87971.0,0.02728297]
[1764549423258,0.34087741,87972.0,87970.0,0.22735023]
[1764549423259,0.01087741,87971.0,87970.0,0.22735023]
[1764549423500,0.36,87971.0,87970.0,0.22735023]
[1764549424119,0.36,87971.0,87968.0,0.23872135]
[1764549424336,0.37087741,87971.0,87968.0,0.23872135]
[1764549424502,0.361,87971.0,87967.0,0.01136789]
[1764549424691,0.37087741,87971.0,87968.0,0.23872317]
[1764549424889,0.09362,87970.0,87940.0,0.00744]
[1764549425089,0.09362,87970.0,87961.0,0.23873989]
[1764549425090,0.01087741,87964.0,87961.0,0.23873989]
[1764549425291,0.39,87964.0,87934.0,0.22744277]
[1764549425531,0.39,87964.0,87920.0,0.64214632]
[1764549425532,0.04665,87961.0,87947.0,0.01137048]
[1764549425735,0.39,87961.0,87954.0,0.23875979]
[1764549425936,0.01136906,87958.0,87951.0,0.01136996]
[1764549426155,0.35136906,87958.0,87949.0,0.00039582]
[1764549426356,0.01087741,87950.0,87949.0,0.00039582]
[1764549426576,0.01087741,87953.0,87952.0,0.01136983]
[1764549426774,0.41,87953.0,87949.0,0.00039582]
[1764549427068,0.01087741,87950.0,87949.0,0.00039582]
[1764549427374,0.35,87950.0,87949.0,0.00039582]
[1764549427594,0.35,87950.0,87949.0,0.00020582]
[1764549428300,0.09294845,88027.0,87949.0,0.00020582]
[1764549428301,0.01136466,87992.0,87983.0,0.01136583]
[1764549428531,0.01136466,87992.0,87977.0,0.0113666]
[1764549428532,0.34,87992.0,87977.0,0.0113666]
[1764549428726,0.34,87992.0,87971.0,0.01136738]
[1764549428727,0.01087741,87983.0,87982.0,0.01136596]
[1764549428846,0.04665,87999.0,87990.0,0.22729771]
[1764549428847,0.01087741,87991.0,87990.0,0.22729771]
[1764549429054,0.34,87991.0,87990.0,0.29889874]
[1764549429839,0.34,87991.0,87990.0,0.68881173]
[1764549429840,0.33561,87991.0,87990.0,0.68881173]
[1764549430174,0.33544,87991.0,87990.0,0.68881173]
[1764549430544,0.33544,87991.0,87990.0,0.37670376]
[1764549430829,0.33544,87991.0,87990.0,0.30089874]
[1764549431061,0.33544,87991.0,87990.0,0.29889874]
[1764549431213,0.33544,87991.0,87990.0,0.36142173]
[1764549431424,0.04665,88038.0,87990.0,0.37631376]
[1764549431627,0.08,88038.0,88037.0,0.01135886]
[1764549431828,0.08,88038.0,88037.0,0.23853606]
[1764549432023,0.0002,88070.0,88027.0,0.00744]
[1764549432024,0.01087741,88064.0,88055.0,0.01135653]
[1764549432238,0.34087741,88064.0,88062.0,0.22711271]
[1764549432412,0.34087741,88064.0,88063.0,0.02611809]
[1764549432413,0.33,88064.0,88063.0,0.02611809]
[1764549433633,0.33,88064.0,88063.0,0.08864108]
[1764549433836,0.331,88064.0,88063.0,0.08864108]
[1764549434142,0.33,88064.0,88063.0,0.02611809]
[1764549434688,0.33,88064.0,88058.0,0.23847918]
[1764549434887,0.33,88064.0,88020.0,0.00999999]
[1764549434888,0.34087741,88064.0,88052.0,0.01135692]
[1764549435106,0.33,88064.0,88061.0,0.23847105]
[1764549435528,0.33,88064.0,88062.0,0.06252299]
[1764549435725,0.0002,88070.0,88069.0,0.28961765]
[1764549435928,0.4002,88070.0,88069.0,0.6907094]
[1764549436135,0.33773627,88070.0,88069.0,0.6907094]
[1764549436312,0.33773627,88070.0,88069.0,0.70160143]
[1764549436535,0.0002,88090.0,88088.0,0.06252299]
[1764549436703,0.3602,88090.0,88089.0,0.39296299]
[1764549436907,0.3602,88090.0,88089.0,0.08085502]
[1764549437114,0.3602,88090.0,88089.0,0.58315052]
[1764549437314,0.3602,88090.0,88089.0,0.57225849]
[1764549437763,0.3602,88090.0,88089.0,0.24925849]
[1764549438339,0.3602,88090.0,88089.0,0.06996299]
[1764549438929,0.3602,88090.0,88089.0,0.39296299]
[1764549439127,0.3602,88090.0,88089.0,0.40385502]
[1764549439331,0.0001,88117.0,88114.0,0.01134893]
[1764549439588,0.2101,88117.0,88116.0,0.06252299]
[1764549440361,0.2101,88117.0,88116.0,0.07341502]
[1764549440580,0.2101,88117.0,88116.0,0.39641502]
[1764549440790,0.2101,88117.0,88116.0,0.38552299]
[1764549440989,0.2101,88117.0,88116.0,0.39641502]
[1764549441233,0.2101,88117.0,88116.0,0.06252299]
[1764549441377,0.2101,88117.0,88116.0,0.16372675]
[1764549442001,0.2101,88117.0,88113.0,0.00744]
[1764549442219,0.2101,88117.0,88098.0,0.11255475]
[1764549442220,0.0113488,88115.0,88098.0,0.11255475]
[1764549442416,0.37,88115.0,88112.0,0.01134919]
[1764549443021,0.37,88115.0,88113.0,0.22698126]
[1764549443433,0.37,88115.0,88114.0,0.06252299]
[1764549443624,0.37,88115.0,88114.0,0.38552299]
[1764549443802,0.37,88115.0,88114.0,0.39641502]
[1764549444824,0.37,88115.0,88114.0,0.38552299]
[1764549445339,0.0001,88117.0,88114.0,0.38552299]
[1764549445340,0.0001,88117.0,88116.0,0.39641502]
[1764549445540,0.0002,88160.0,88116.0,0.39641502]
[1764549445778,0.07000001,88120.0,88119.0,3.16857182]
[1764549445995,0.38000001,88120.0,88119.0,2.36536982]
[1764549446145,0.38000001,88120.0,88119.0,0.61248879]
[1764549446146,0.34594703,88120.0,88119.0,0.61248879]
[1764549446352,0.0002,88160.0,88139.0,0.39641502]
[1764549446550,0.3502,88140.0,88139.0,0.39296299]
[1764549446737,0.3502,88140.0,88139.0,0.00744]
[1764549447134,0.3502,88140.0,88137.0,0.01134597]
[1764549447361,0.00207138,88138.0,88129.0,0.011347]
[1764549447673,0.39,88138.0,88137.0,0.23826542]
[1764549448081,0.39,88138.0,88124.0,0.00744]
[1764549448286,0.39,88138.0,88134.0,0.01134635]
[1764549448482,0.39,88138.0,88131.0,0.01134674]
[1764549448483,0.02836493,88137.0,88126.0,0.23829351]
[1764549448708,0.01134687,88130.0,88122.0,0.0113479]
[1764549448894,0.01134829,88119.0,88116.0,0.0074]
[1764549449099,0.01134829,88119.0,88080.0,0.01999998]
[1764549449100,0.01087741,88105.0,88092.0,0.01135176]
[1764549449272,0.01087741,88105.0,88102.0,0.01135048]
[1764549449273,0.39,88105.0,88102.0,0.01135048]
[1764549449479,0.39,88105.0,88102.0,0.00011859]
[1764549449890,0.39,88105.0,88103.0,0.32821078]
[1764549450264,0.39,88105.0,88103.0,0.22700702]
[1764549450659,0.39,88105.0,88102.0,0.00011859]
[1764549450863,0.22700526,88104.0,88102.0,0.00011859]
[1764549451056,0.39,88104.0,88102.0,0.00011859]
[1764549451307,0.45,88104.0,88102.0,0.22712748]
[1764549451670,0.39,88104.0,88102.0,0.00011859]
[1764549452092,0.39,88104.0,88102.0,0.22712619]
[1764549452308,0.39,88104.0,88103.0,0.16372675]
[1764549453110,0.39,88104.0,88102.0,0.00751859]
[1764549453518,0.39,88104.0,88102.0,0.00011859]
[1764549453519,0.22700702,88103.0,88102.0,0.00011859]
[1764549453719,0.35087741,88103.0,88102.0,0.00011859]
[1764549454218,0.44452741,88103.0,88102.0,0.00011859]
[1764549454398,0.35087741,88103.0,88102.0,0.00011859]
[1764549455021,0.34,88103.0,88102.0,0.00011859]
[1764549455422,0.35087741,88103.0,88102.0,0.00011859]
[1764549455652,0.34,88103.0,88102.0,0.00011859]
[1764549455853,0.35087741,88103.0,88102.0,0.00011859]
[1764549456053,0.44452741,88103.0,88102.0,0.00011859]
[1764549456257,0.34,88103.0,88102.0,0.00011859]
[1764549456620,0.35087741,88103.0,88102.0,0.00011859]
[1764549456830,0.01135202,88090.0,88058.0,0.01135615]
[1764549457045,0.01135202,88090.0,88040.0,0.57393912]
[1764549457046,0.01135215,88089.0,88074.0,0.22708146]
[1764549457401,0.01135215,88089.0,88075.0,0.01135395]
[1764549457402,0.01087741,88085.0,88075.0,0.01135395]
[1764549457591,0.37087741,88085.0,88082.0,0.01135305]
[1764549457954,0.36,88085.0,88083.0,0.22705756]
[1764549458190,0.36,88085.0,88082.0,0.23841287]
[1764549458735,0.36,88085.0,88079.0,0.01135344]
[1764549458736,0.01089519,88083.0,88079.0,0.01135344]
[1764549458878,0.01089519,88083.0,88047.0,0.00012]
[1764549458879,0.01089519,88073.0,88051.0,0.01135705]
[1764549459074,0.01089519,88073.0,88047.0,0.22715072]
[1764549459075,0.01135512,88066.0,88055.0,0.01135653]
[1764549459274,0.01135512,88066.0,88052.0,0.22713836]
[1764549459275,0.01135563,88062.0,88052.0,0.22713836]
[1764549459477,0.01135563,88062.0,88054.0,0.23848855]
[1764549459478,0.01089519,88057.0,88054.0,0.23848855]
[1764549459678,0.33,88057.0,88048.0,0.2271482]
[1764549459877,0.33,88057.0,88020.0,0.57393912]
[1764549459878,0.01135744,88048.0,88029.0,0.01135989]
[1764549460082,0.01135782,88045.0,88037.0,0.22717669]
[1764549460274,0.01135782,88045.0,88029.0,0.01135989]
[1764549460275,0.01089519,88040.0,88026.0,0.0074]
[1764549460505,0.38129057,88040.0,88031.0,0.22719016]
[1764549460686,0.38129057,88040.0,88026.0,0.23460301]
[1764549460687,0.01135886,88037.0,88027.0,0.23856316]
[1764549460916,0.01135886,88037.0,88026.0,0.0074]
[1764549460917,0.01089519,88030.0,88026.0,0.0074]
[1764549461082,0.41089519,88030.0,88026.0,0.23460384]
[1764549461289,0.41089519,88030.0,88028.0,0.22719921]
[1764549461687,0.4,88030.0,88028.0,0.22719921]
[1764549462187,0.4,88030.0,88029.0,0.10132376]
[1764549462433,0.4,88030.0,88029.0,0.06252299]
[1764549462636,0.4,88030.0,88028.0,0.22719921]
[1764549462637,0.4,88030.0,88026.0,0.0074]
[1764549462842,0.4,88030.0,88016.0,0.01136157]
[1764549463085,0.4,88030.0,88009.0,0.323]
[1764549463086,0.01089519,88027.0,88021.0,0.22721722]
[1764549463261,0.01089519,88027.0,88015.0,0.01136169]
[1764549463262,0.0113604,88025.0,88013.0,0.01136195]
[1764549463463,0.01089519,88018.0,88011.0,0.01136221]
[1764549463673,0.01136144,88017.0,88001.0,0.22726926]
[1764549463869,0.35136144,88017.0,88004.0,0.22726239]
[1764549464065,0.01089519,88009.0,88007.0,0.22725297]
[1764549464273,0.37089519,88009.0,88008.0,0.22725206]
[1764549464584,0.37089519,88009.0,88007.0,0.22725297]
[1764549464789,0.37089519,88009.0,88000.0,0.01176363]
[1764549464790,0.01136273,88007.0,88000.0,0.01176363]
[1764549464999,0.01136273,88007.0,88000.0,0.0004]
[1764549465000,0.01089519,88001.0,88000.0,0.0004]
[1764549465203,0.37039513,88001.0,88000.0,0.0004]
[1764549465398,0.47494032,88001.0,88000.0,0.0004]
[1764549467452,0.37039513,88001.0,88000.0,0.0004]
[1764549467735,0.22729339,87992.0,87965.0,0.01136815]
[1764549467943,0.22729339,87992.0,87953.0,0.00012]
[1764549467944,0.38089519,87992.0,87947.0,0.10120376]
[1764549468112,0.38089519,87992.0,87991.0,0.22779597]
[1764549468113,0.37,87992.0,87991.0,0.22779597]
[1764549468481,0.37,87992.0,87991.0,0.29031896]
[1764549468696,0.37,87992.0,87991.0,0.22779597]
[1764549470881,0.37,87992.0,87991.0,0.22879597]
[1764549471079,0.37,87992.0,87991.0,0.22779597]
[1764549471495,0.37,87992.0,87991.0,0.22931597]
[1764549471695,0.37,87992.0,87991.0,0.30273099]
[1764549471899,0.37,87992.0,87991.0,0.62573099]
[1764549472078,0.00039513,88001.0,88000.0,0.62368774]
[1764549472284,0.29039513,88001.0,88000.0,0.61279571]
[1764549472488,0.29039513,88001.0,88000.0,0.61331571]
[1764549472935,0.29039513,88001.0,88000.0,0.22727272]
[1764549473132,0.29039513,88001.0,87995.0,0.01136428]
[1764549473133,0.01089519,87998.0,87973.0,0.01136712]
[1764549473289,0.01089519,87998.0,87989.0,0.01136505]
[1764549473290,0.42089519,87998.0,87989.0,0.01136505]
[1764549473492,0.01089519,87993.0,87991.0,0.0005]
[1764549473721,0.39089519,87993.0,87991.0,0.0005]
[1764549473914,0.39089519,87993.0,87992.0,0.22729339]
[1764549473915,0.38,87993.0,87992.0,0.22729339]
[1764549474092,0.38,87993.0,87992.0,0.55081339]
[1764549474627,0.38,87993.0,87992.0,0.61333638]
[1764549474788,0.38,87993.0,87992.0,0.66333638]
[1764549474989,0.38,87993.0,87992.0,0.66281638]
[1764549475181,0.38,87993.0,87992.0,0.66333638]
[1764549476693,0.38,87993.0,87992.0,0.60029339]
[1764549477011,0.38,87993.0,87992.0,0.27729339]